Cogmind - Beta 13 @@@ ROGUE MODE // 2024.04.04 @ 19:33:35 Player: _An Result: Core destroyed Performance ------------- Evolutions (2) 1000 Regions Visited (6) 1200 Robots Destroyed (44) 220 Value Destroyed (1113) 1113 Prototype IDs (3) 60 Alien Tech Used (0) 0 Bonus (332) 332 TOTAL SCORE: 3925 Bonus ------- Entered Garrisons 200 Used RIF Installer 500 Friendly Fire -368 Cogmind --------- Core Integrity 0/550 Matter 185/300 Energy 50/100 System Corruption 9% Temperature Critical (603) Movement Core (350) Ox6 Location -8/Garrison Parts ------- > --- POWER (1) -------- (None) > --- PROPULSION (5) --- Improved Flight Unit > --- UTILITY (3) ------ Improved Heat Sink Medium Storage Unit Hardened Medium Armor Plating > --- WEAPON (2) ------- (None) > --- INVENTORY (10) --- Reflective Plating Reflective Plating Reflective Plating Hacking Suite Firepult Improved Grenade Launcher Improved Grenade Launcher Datajack Mining Claw Peak State ------------ > --- POWER ------------ Nuclear Core > --- PROPULSION ------- Flight Unit VTOL Module Improved Flight Unit Improved VTOL Module Improved VTOL Module > --- UTILITY ---------- Medium Storage Unit Hardened Medium Armor Plating Reflective Plating > --- WEAPON ----------- Firepult > --- INVENTORY -------- Improved Heat Sink Reflective Plating Reflective Plating Hacking Suite Improved Grenade Launcher Improved Grenade Launcher Datajack Mining Claw [Rating: 46] Favorites ----------- Power Light Ion Engine Engine Light Ion Engine Power Core Nuclear Core Propulsion Hover Unit Treads Light Treads Wheel Armored Huge Wheel Hover Unit Hover Unit Flight Unit Improved VTOL Module Utility Small Storage Unit Device Improved Heat Sink Storage Small Storage Unit Processor Transport Network Coupler Hackware Hacking Suite Protection Reflective Plating Weapon Firepult Energy Gun Medium Laser Energy Cannon Firepult Ballistic Gun Light Assault Rifle Launcher Mini Grenade Launcher Slashing Weapon Mining Claw Build | -11 -10 -10 -10 -9 -8 -8 ------- Run | Yrd Mat Min Exi Min Mat Gar Slots Evolved 4 | . . . . . 4 . Power . | . . . . . . . Propulsion 3 | . . . . . 3 . Utility 1 | . . . . . 1 . Weapon . | . . . . . . . Parts Attached 39 | 7 6 . 3 2 17 4 Power 4 | 2 1 . . . 1 . Engine 3 | 2 1 . . . . . Core 1 | . . . . . 1 . Reactor . | . . . . . . . Propulsion 16 | 2 2 . 1 2 9 . Treads 2 | 2 . . . . . . Leg . | . . . . . . . Wheel 1 | . . . . 1 . . Hover 4 | . 2 . 1 1 . . Flight 9 | . . . . . 9 . Utility 11 | 1 1 . 1 . 6 2 Device 1 | . . . . . . 1 Storage 3 | 1 . . . . 2 . Processor 2 | . 1 . 1 . . . Hackware 1 | . . . . . 1 . Protection 4 | . . . . . 3 1 Artifact . | . . . . . . . Weapon 8 | 2 2 . 1 . 1 2 Energy Gun 1 | 1 . . . . . . Energy Cannon 3 | . . . 1 . . 2 Ballistic Gun 1 | 1 . . . . . . Ballistic Cannon . | . . . . . . . Launcher 1 | . 1 . . . . . Special Weapon . | . . . . . . . Impact Weapon . | . . . . . . . Slashing Weapon 2 | . 1 . . . 1 . Piercing Weapon . | . . . . . . . Special Melee Weapon . | . . . . . . . Unidentified Prototypes 3 | . . . 1 . 2 . Parts Lost 9 | . . . . . 5 4 Power 2 | . . . . . 1 1 Propulsion 5 | . . . . . 2 3 Utility 2 | . . . . . 2 . Weapon . | . . . . . . . Highest Loss Streak 4 | . . . . . 3 4 To Critical Strikes . | . . . . . . . Average Slot Usage (%) 86 | . 93 100 92 83 79 80 Engine 11 | . 14 14 14 14 5 . Treads 3 | . 18 . . . . . Hover 16 | . 10 28 28 24 . . Flight 10 | . . . . . 39 42 Storage 12 | . 14 14 14 14 9 9 Processor 10 | . 8 14 14 14 5 . Protection 2 | . . . . . 8 11 Energy Gun 1 | . 9 . . . . . Energy Cannon 6 | . . . 7 14 1 3 Ballistic Gun 2 | . 11 . . . . . Launcher 2 | . 4 14 6 . . . Slashing Weapon 4 | . 2 14 6 . 7 5 Naked Turns . | . . . . . . . Heaviest Build 51 | 13 13 11 30 30 30 51 Greatest Support 40 | 40 40 12 12 28 28 23 Greatest Overweight (x) 13 | . 1 . 2 2 5 13 Average Overweight (x) . | . . . . 1 . . Largest Inventory Capacity 10 | 8 8 8 8 8 10 10 Average Capacity 8 | 6 8 8 8 8 9 10 Most Carried 10 | 1 8 8 8 8 10 10 Average Carried 6 | . 2 8 7 7 8 9 Final Capacity 10 | 8 8 8 8 8 10 10 Final Carried 10 | 1 8 8 8 8 10 10 Class Distribution -------------------- 79% | Mutant 20% | Sprinter Dominant Class ---------------- Mutant | -10/Materials Mutant | -10/Mines Mutant | -10/Exiles Mutant | -9/Mines Sprinter | -8/Materials Sprinter | -8/Garrison Resources | -11 -10 -10 -10 -9 -8 -8 ----------- Run | Yrd Mat Min Exi Min Mat Gar Matter Collected 614 | 119 215 36 . 99 145 . Remotely . | . . . . . . . Salvage Created 1257 | . 345 61 . 537 96 218 Parts 80 | . 24 11 . 28 10 7 Haulers Intercepted . | . . . . . . . Recyclers Shooed 1 | . 1 . . . . . Parts Field Recycled . | . . . . . . . Retrieved Matter . | . . . . . . . Parts Self-Destructed . | . . . . . . . Prevented . | . . . . . . . Kills | -11 -10 -10 -10 -9 -8 -8 ------- Run | Yrd Mat Min Exi Min Mat Gar Combat Hostiles Destroyed 33 | . 6 5 . 14 1 7 Melee 1 | . . . . . 1 . Guns 6 | . 6 . . . . . Cannons 4 | . . . . 2 . 2 AOE 16 | . . 5 . 7 . 4 Classes Destroyed 9 | . 5 1 . 1 1 1 Worker 2 | . . . . 1 1 . Tunneler 1 | . . 1 . . . . Recycler 2 | . 1 . . 1 . . Operator 3 | . 1 . . . 2 . Watcher 2 | . 2 . . . . . Swarmer 17 | . 3 3 . 7 . 4 Grunt 15 | . 3 2 . 8 . 2 Brawler 1 | . . . . . . 1 Sentry 1 | . . . . . 1 . Best Kill Streak 8 | . 6 4 . 8 1 4 Combat Bots Only 8 | . 5 3 . 8 1 4 Max Kills in Single Turn 7 | . 2 2 . 7 1 3 Gunslinging . | . . . . . . . Exploded 4 | . . 2 . 4 . 3 Melee 1 | . . . . . 1 . Uniques/NPCs Destroyed . | . . . . . . . Combat | -11 -10 -10 -10 -9 -8 -8 -------- Run | Yrd Mat Min Exi Min Mat Gar Hostile Shots Fired 105 | . 38 6 . 13 28 20 Missed 32 | . 9 2 . 6 14 1 Damage Taken 1822 | . 305 108 . 103 530 776 Core 705 | . 65 42 . 18 111 469 Absorbed by Shields . | . . . . . . . Ignored by Resistances 16 | . . . . . . 16 Core Remaining (%) 75 | 100 . . . 50 . . Volleys Fired 38 | . 19 7 1 4 1 6 Largest 2 | . 2 1 1 1 1 1 Hottest 250 | . 70 30 250 250 250 250 Shots Fired 57 | . 38 7 1 4 1 6 Gun 38 | . 38 . . . . . Cannon 12 | . . . 1 4 1 6 Launcher 7 | . . 7 . . . . Special . | . . . . . . . Kinetic 19 | . 19 . . . . . Thermal 31 | . 19 . 1 4 1 6 Explosive 7 | . . 7 . . . . Electromagnetic . | . . . . . . . Robot Hit Streak 13 | . 12 13 . 4 5 3 Robot Miss Streak 5 | . 1 1 . 5 3 4 Penetration Max . | . . . . . . . Secondary Targets . | . . . . . . . Shots Hit Robots 46 | . 29 3 . 3 7 4 Core Hits 60 | . 17 9 . 24 2 8 Critical Kills 1 | . 1 . . . . . Critical Parts Destroyed . | . . . . . . . Critical Strikes 4 | . 4 . . . . . Burn 3 | . 3 . . . . . Destroy 1 | . 1 . . . . . Melee Attacks 36 | . 5 . . . 25 6 Impact . | . . . . . . . Slashing 36 | . 5 . . . 25 6 Piercing . | . . . . . . . Sneak Attacks 6 | . 1 . . . 5 . Combat Hostiles . | . . . . . . . Follow-up Attacks . | . . . . . . . Damage Inflicted 2390 | . 388 458 62 696 363 423 Guns 326 | . 326 . . . . . Cannons 259 | . . . 17 144 . 98 Explosions 1434 | . . 458 45 552 54 325 Melee 371 | . 62 . . . 309 . Ramming . | . . . . . . . Kinetic 98 | . 98 . . . . . Thermal 1463 | . 228 . 62 696 54 423 Explosive 458 | . . 458 . . . . Electromagnetic . | . . . . . . . Impact . | . . . . . . . Slashing 371 | . 62 . . . 309 . Piercing . | . . . . . . . Highest Corruption 9 | . . . . . 9 9 Average Corruption 9 | . . . . . 9 9 Corruption Purged . | . . . . . . . Corruption Blocked . | . . . . . . . Effects 13 | . . . . . 6 7 Message Errors 2 | . . . . . . 2 Matter Fused 2 | . . . . . 1 1 Heat Flow Errors 3 | . . . . . 1 2 Energy Discharges 4 | . . . . . 3 1 Parts Fused 1 | . . . . . . 1 Data Loss (major) 1 | . . . . . 1 . Overload Shots . | . . . . . . . Overflow Damage 93 | . . 1 . . 64 28 Projectiles 15 | . . . . . . 15 Explosions 14 | . . 1 . . . 13 Melee 64 | . . . . . 64 . Knockbacks . | . . . . . . . Impact . | . . . . . . . Kinetic . | . . . . . . . Secondary . | . . . . . . . Self-Inflicted Damage 216 | . . 76 . 49 . 91 Shots 15 | . . 3 . 3 . 9 Rammed 1 | . 1 . . . . . Targets Rammed 1 | . 1 . . . . . Kicked . | . . . . . . . Crushed . | . . . . . . . Highest Temperature 796 | . 275 12 308 468 247 796 Average Temperature 171 | . 126 7 158 179 51 296 Received Heat Transfer 369 | . 117 9 . . 45 198 Effects 24 | . 1 . . 2 . 21 Shutdowns 4 | . . . . . . 4 Energy Bleed 3 | . 1 . . . . 2 Interference 5 | . . . . 2 . 3 Matter Decay 2 | . . . . . . 2 Short Circuit 3 | . . . . . . 3 Damage (minor) 2 | . . . . . . 2 Damage (core) 5 | . . . . . . 5 Siege Activations . | . . . . . . . Robots Corrupted . | . . . . . . . Combat Hostiles . | . . . . . . . Parts Fried . | . . . . . . . Impact Corruptions . | . . . . . . . Robots Melted 6 | . . . . 5 . 1 Combat Hostiles 6 | . . . . 5 . 1 Parts Melted 17 | . 4 . . 9 . 4 Heat Transferred 7368 | . 888 . 240 3760 240 2240 Parts Sabotaged . | . . . . . . . Parts Stolen . | . . . . . . . Parts Stripped . | . . . . . . . Power Chain Reactions . | . . . . . . . Alert | -11 -10 -10 -10 -9 -8 -8 ------- Run | Yrd Mat Min Exi Min Mat Gar Peak Influence 341 | . 274 203 . 323 341 259 Initial 89 | . . 28 . . 73 89 Average 164 | . 154 124 . 202 156 142 Maximum Alert Level 1 | . 1 1 . 1 1 1 Low Security (%) 70 | 100 64 69 . 70 78 64 Level 1 29 | . 35 30 . 29 21 35 Level 2 . | . . . . . . . Level 3 . | . . . . . . . Level 4 . | . . . . . . . Level 5 . | . . . . . . . High Security . | . . . . . . . Max Security . | . . . . . . . Squads Dispatched 4 | . 3 . . . 1 . Investigation 2 | . 2 . . . . . Extermination . | . . . . . . . Reinforcement 2 | . 1 . . . 1 . Assault . | . . . . . . . Garrison . | . . . . . . . Intercept . | . . . . . . . Searches Triggered . | . . . . . . . Construction Impeded . | . . . . . . . Haulers Reinforced . | . . . . . . . Active Scanning Responses . | . . . . . . . Cargo Convoy Interrupts . | . . . . . . . Stealth | -11 -10 -10 -10 -9 -8 -8 --------- Run | Yrd Mat Min Exi Min Mat Gar Distress Signals 6 | . 2 . . . 4 . Communications Jammed . | . . . . . . . Distress Signals . | . . . . . . . Times Spotted 76 | . 13 4 . 16 36 7 Peak Tracking Total 19 | . 7 3 . 8 19 4 Tactical Retreats 7 | . 1 . . . 6 . Traps | -11 -10 -10 -10 -9 -8 -8 ------- Run | Yrd Mat Min Exi Min Mat Gar Traps Triggered 7 | . 1 . . . 1 5 Indirectly . | . . . . . . . Trap Hack Attempts . | . . . . . . . Triggered . | . . . . . . . Disarmed . | . . . . . . . Reprogrammed . | . . . . . . . Reused . | . . . . . . . Traps Extracted . | . . . . . . . Installed . | . . . . . . . Triggered . | . . . . . . . Machines | -11 -10 -10 -10 -9 -8 -8 ---------- Run | Yrd Mat Min Exi Min Mat Gar Machines Disabled 2 | . . . . . 1 1 Max in Single Turn 1 | . . . . . 1 1 Garrison Relay 1 | . . . . . . 1 Machines Repaired . | . . . . . . . Machines Dismantled . | . . . . . . . Machines Sabotaged . | . . . . . . . Overloaded Fab Kills . | . . . . . . . Hacking | -11 -10 -10 -10 -9 -8 -8 --------- Run | Yrd Mat Min Exi Min Mat Gar Machines Accessed 14 | . 3 . . 1 10 . Terminals 12 | . 3 . . . 9 . Fabricators . | . . . . . . . Repair Stations . | . . . . . . . Recycling Units . | . . . . . . . Scanalyzers . | . . . . . . . Garrison Access 1 | . . . . . 1 . Total Hacks 34 | . 6 . . 1 27 . Successful 15 | . 1 . . 1 13 . Failed 19 | . 5 . . . 14 . Catastrophic 7 | . 2 . . . 5 . Database Lockouts . | . . . . . . . Manual 33 | . 6 . 1 . 26 . Terminals 32 | . 6 . . . 26 . Fabricators . | . . . . . . . Repair Stations . | . . . . . . . Recycling Units . | . . . . . . . Scanalyzers . | . . . . . . . Garrison Access 1 | . . . . . 1 . Terminal Hacks 5 | . . . . 1 4 . Open Door 1 | . . . . 1 . . Terminal Index 1 | . . . . . 1 . Garrison Index 1 | . . . . . 1 . Unreport Threat 2 | . . . . . 2 . Fabricator Hacks . | . . . . . . . Repair Station Hacks . | . . . . . . . Recycling Unit Hacks . | . . . . . . . Scanalyzer . | . . . . . . . Garrison Access Hacks 1 | . . . . . 1 . Unlock Access 1 | . . . . . 1 . Unauthorized Hacks 9 | . 1 . . . 8 . Terminals 9 | . 1 . . . 8 . Assimilate 3 | . 1 . . . 2 . Botnet 6 | . . . . . 6 . Fabricators . | . . . . . . . Repair Stations . | . . . . . . . Recycling Units . | . . . . . . . Scanalyzers . | . . . . . . . Garrison Access . | . . . . . . . Data Cores Recovered . | . . . . . . . Used . | . . . . . . . Hacking Detections 11 | . 3 . . . 8 . Full Trace Events 1 | . 1 . . . . . Feedback Events . | . . . . . . . Feedback Blocked . | . . . . . . . Robot Schematics Acquired . | . . . . . . . Robots Built . | . . . . . . . Authchips . | . . . . . . . Time . | . . . . . . . Total Robot Build Rating . | . . . . . . . Part Schematics Acquired . | . . . . . . . Parts Built . | . . . . . . . Authchips . | . . . . . . . Time . | . . . . . . . Total Part Build Rating . | . . . . . . . Parts Repaired . | . . . . . . . Time . | . . . . . . . Parts Recycled . | . . . . . . . Recycled Matter . | . . . . . . . Retrieved Matter . | . . . . . . . Retrieved Components . | . . . . . . . Parts Scanalyzed . | . . . . . . . Part Schematics Acquired . | . . . . . . . Parts Damaged . | . . . . . . . Bothacking | -11 -10 -10 -10 -9 -8 -8 ------------ Run | Yrd Mat Min Exi Min Mat Gar Used RIF Installer 1 | . . . . . . 1 Robots Hacked . | . . . . . . . Non-combat . | . . . . . . . Combat . | . . . . . . . Robot Hacks Applied . | . . . . . . . Relay Couplers Released 5 | . . . . . . 5 Machine Destruction 5 | . . . . . . 5 Fabnet Peak Effective % . | . . . . . . . Robots Rewired . | . . . . . . . Allies Hacked . | . . . . . . . Hacks Repelled . | . . . . . . . Allies | -11 -10 -10 -10 -9 -8 -8 -------- Run | Yrd Mat Min Exi Min Mat Gar Total Allies 4 | . . . . 3 1 . Largest Group 3 | . . . . 3 2 . Highest-Rated Group 40 | . . . . 40 24 . Highest-Rated Ally 16 | . . . . 16 16 . Total Orders . | . . . . . . . Ally Attacks 21 | . . . . 2 19 . Total Damage 243 | . . . . 31 212 . Kills 2 | . . . . . 2 . Allies Corrupted . | . . . . . . . Allies Melted . | . . . . . . . Intel | -11 -10 -10 -10 -9 -8 -8 ------- Run | Yrd Mat Min Exi Min Mat Gar Robot Analysis Total . | . . . . . . . Derelict Logs Recovered 5 | . . 3 . 2 . . Drone Launches . | . . . . . . . Drone Recoveries . | . . . . . . . Exploration | -11 -10 -10 -10 -9 -8 -8 ------------- Run | Yrd Mat Min Exi Min Mat Gar Turns Passed 2327 | 66 415 118 396 737 351 244 Spaces Moved 2125 | 42 313 161 445 406 595 163 Core 11 | 10 . . . . . 1 Treads 138 | 32 106 . . . . . Legs . | . . . . . . . Wheels 112 | . . . . 85 27 . Hover 1134 | . 207 161 445 321 . . Flight 730 | . . . . . 568 162 Fastest Speed 25 | 50 56 56 56 115 25 25 Average Speed 81 | 133 91 56 84 163 30 42 Slowest Speed 700 | 160 160 56 176 176 395 700 Overloaded Moves . | . . . . . . . Propulsion Burnouts . | . . . . . . . Robots Hopped 6 | . . . . . 6 . Cave-ins Triggered 2 | . . . . . 2 . Exploration Rate (%) 53 | 3 75 47 88 78 60 25 Regions Visited 6 Branch Regions 3 Pre-discovered Areas 2 | . . 1 . 1 . . Known Exits Taken 5 | . 1 1 1 1 1 . Unknown Exits Taken 1 | 1 . . . . . . Scrap Searched 3 | . . 1 . 2 . . Spaces Dug 22 | . 4 . . . 18 . Terrain Destroyed 116 | . 4 56 2 23 31 . Melee 22 | . 4 . . . 18 . Projectile 2 | . . . . 2 . . AOE 92 | . . 56 2 21 13 . Terrain Rammed . | . . . . . . . Walls Destroyed . | . . . . . . . Machines Disabled . | . . . . . . . Actions | -11 -10 -10 -10 -9 -8 -8 --------- Run | Yrd Mat Min Exi Min Mat Gar Total 2608 | 48 397 181 464 484 710 324 Wait 221 | . 40 14 9 51 58 49 Move 2109 | 41 312 160 444 405 584 163 Hop 4 | . . . . . 4 . Pick Up 29 | . 7 . 1 10 10 1 Fast Attach 17 | 6 3 . 2 1 5 . Attach 18 | . 3 . 1 . 10 4 Detach 14 | . 5 . 2 . 4 3 Swap 4 | 1 . . . 1 2 . Drop 26 | . 2 . 3 12 7 2 Fire 38 | . 19 7 1 4 1 6 Melee 36 | . 5 . . . 25 6 Ram . | . . . . . . . Kick . | . . . . . . . Crush 1 | . 1 . . . . . Escape Stasis 90 | . . . . . . 90 Rewire 1 | . . . 1 . . . Trap . | . . . . . . . Miscellaneous . | . . . . . . . Route ------- -11/Scrapyard -10/Materials (discovered 2 exits: *Mat / *Min) -10/Mines (discovered 3 exits: *Mat x2 / *Exi) -10/Exiles (discovered 2 exits: *Min x2) -9/Mines -8/Materials (discovered 3 exits: [*Fac x2] / Gar) -8/Garrison History --------- Turn | Location | Event 9 | -11/Scrapyard | Discovered new exit (range 16) 67 | -11/Scrapyard | Entered Materials 300 | -10/Materials | Build established: Mutant 421 | -10/Materials | Discovered new exit (range 14) 428 | -10/Materials | Identified exit to Materials 479 | -10/Materials | Discovered new exit (range 7) 482 | -10/Materials | Identified exit to Mines 482 | -10/Materials | Entered Mines 500 | -10/Mines | Learned location of Zion (-7) 541 | -10/Mines | Learned Materials security intel 568 | -10/Mines | Discovered exit to Materials (range 15) 574 | -10/Mines | Discovered exit to Materials (range 7) 597 | -10/Mines | Deemed a non-threat by the Exiles lab entrance 598 | -10/Mines | Discovered new exit (range 5) 600 | -10/Mines | Identified exit to Exiles 600 | -10/Mines | Entered Exiles 600 | -10/Exiles | Found Exiles lab destroyed 601 | -10/Exiles | Identified exit to Mines 791 | -10/Exiles | Opened EX-Vault 794 | -10/Exiles | Found Prototype Energy Cannon 794 | -10/Exiles | Identified Firepult 996 | -10/Exiles | Entered Mines 1044 | -9/Mines | Learned 2 Materials zone layouts 1063 | -9/Mines | Assisted by bots powering up and referring to "LRC-V3" 1146 | -9/Mines | YI-UF0 nonchalantly dropped a Grenade Launcher on the ground 1200 | -9/Mines | Destroyed 8 combat bots 1314 | -9/Mines | Found a hidden stash of uninstalled traps 1595 | -9/Mines | Identified exit to Materials 1624 | -9/Mines | Met a Derelict who couldn't figure out how to use a Trap Extractor 1723 | -9/Mines | Received a Rocket Launcher from a helpful Derelict 1724 | -9/Mines | Learned location of Storage (-8) 1733 | -9/Mines | Assembled infested the area 1733 | -9/Mines | Entered Materials 1733 | -8/Materials | Accompanied by 2 allies 1733 | -8/Materials | Evolved 4 slots: Propulsion x3, Utility x1 1875 | -8/Materials | Discovered new exit (range 16) 1942 | -8/Materials | Crushed by falling debris 1962 | -8/Materials | Crushed by falling debris 1973 | -8/Materials | Lost 3 parts (1p1n1u) 1975 | -8/Materials | Discovered new exit (range 8) 2061 | -8/Materials | Build established: Sprinter 2084 | -8/Materials | Identified exit to Garrison 2084 | -8/Materials | Entered Garrison 2162 | -8/Garrison | Installed Relay Interface Framework 2220 | -8/Garrison | Garrison Relay disabled 2240 | -8/Garrison | Triggered checkpoint 2309 | -8/Garrison | Core integrity fell below 50% 2325 | -8/Garrison | Core integrity fell below 20% 2329 | -8/Garrison | Core destroyed Last Messages --------------- Imp. Heat Sink temporarily disabled. Overheating: Core damaged (-99). Nuclear Core destroyed. Flight Unit broken. Overheating: Short circuit. Broken Flight Unit destroyed. Critical hit (Burn: +37). Overheating: System interference. Firepult temporarily disabled. Critical hit (Burn: +37). Imp. VTOL Module destroyed. Overheating: Core damaged (-82). Destroyed Aluminum Leg. Destroyed Particle Gun. G-47 Trooper destroyed. Lgt. Nuclear Core melted. G-47 Trooper destroyed. Overheating: Core damaged (-88). Overheating: Matter decay (-52). Overheating: Core damaged (-82). Map ----- +----------------------------------------------------+ | ??????????????????????????????????????????### #?? | | ??????????????????????????????????????????#"# #?? | | ??????????????????????????????????????????#"! #?? | | ?????????????????????????????????#####????#!!! #?? | | ?????????????????????????????????#"""#????#"! #?? | | ?????????????????????????????????#" "#????#"# #?? | | ?????????????????????????????????#" "#????### #?? | | ?????????????????????????????????#" "#??????# #?? | | ?????????????????????????????????# #??????# #?? | | ?????????????????????????????????## ##??????# #?? | | ??????????????????????????????????# #???????" #?? | | ??????????????????????????????????# #???????" #?? | | ??????????????????????????????????# #???????" #?? | | ??????????????????????????????????# #???????# #?? | | ??????????????????????????????????# ######### ### | | ??????????????????????????????????# ^ | | ??????????????????????????????????# | | ??????????????????????????????????# ^ | | ??????????????????????????????????# ############ | | ??????????????????????????????????# #??????????? | | ????????????????????????###???????# ^^#??????????? | | ???????????????????????? #???????# ^#??????????? | | ????????????????????????# #???????# #??????????? | | ????????????????????????# #?####### #??????????? | | ????????????????????????# #?# [## #??????????? | | ???????????????????????##@###[ [ ## #??????????? | | ??????????????????## ### #??????????? | | ?????????????# % % = #??????????? | | ??????????? % #??????????? | | ????????????############ ## ## #??????????? | | ???????????????????????# ## ## #??????????? | | ???????????????????????" "??????????? | | ???????????????????????" "??????????? | | ???????????????????????" "??????????? | | ???????????????????????" "??????????? | | ???????????????????????# ## ## #??????????? | | ???????????????????????# ## ## #??????????? | | ??????????????????????? ??????????? | | ??????????????????????? ??????????? | | ?????????????????????? ##?????????? | | ??????????????????????#######""""## ##??????????? | | ??????????????????????????????????? ????????????? | | ?????????????????????????????????????????????????? | | ?????????????????????????????????????????????????? | | ?????????????????????????????????????????????????? | | ?????????????????????????????????????????????????? | | ?????????????????????????????????????????????????? | | ?????????????????????????????????????????????????? | | ?????????????????????????????????????????????????? | | ?????????????????????????????????????????????????? | +----------------------------------------------------+ Best States ------------- Heat Dissipation 31 Energy Generation 14 Energy Capacity 250 Matter Stores 300 Matter Capacity 300 Sight Range 16 Terrain Scan Density 10 Armor Coverage 375 Resistance: TH 10 Evasion (%) 65 Recoil Reduction 2 Offensive Hacking 10 Item Schematics ----------------- None Robot Schematics ------------------ None Fabricated ------------ Nothing Alien Tech Used ----------------- None Achievements -------------- None Challenges ------------ None Game ------ Seed FocalStorageVibroblade Manual? 0 Play Time 00:24:41 Cumulative 13.0 hours Start 2024.04.04 @ 19:09:09 End 2024.04.04 @ 19:33:35 Sessions 1 Manual Loads 0 Difficulty Rogue Special Mode None Game No. 23 Rogue 23 Adventurer 0 Explorer 0 Win Type - Total 0 Types 0/0/0/0/0/0/0/0/0 Lore% 13 Gallery% 25 Achievement% 23 Wizard Run 0 Options --------- Layout 1 ASCII 0 Keyboard 1 Movement Numpad Keybinds 0 Fullscreen 1 Font 32/SmallcapsGlow Map View 50x35 Zoom Use 0% Tactical HUD 0 Map Filters NONE Filters NONE Steam 1 RUN: a85f4243-da80-41d7-93fa-05f11f92e18a